bitfinex/quotes_BTCUSD_20230109
["timestamp","ask_amount","ask_price","bid_price","bid_amount"]
[1673308151783,0.20084593,17188.0,17187.0,2.349505]
[1673308153767,0.027,17188.0,17187.0,2.349505]
[1673308154274,0.02866058,17188.0,17187.0,2.349505]
[1673308154554,0.027,17188.0,17187.0,2.349505]
[1673308155559,0.027,17188.0,17187.0,2.35094795]
[1673308155810,0.02866058,17188.0,17187.0,2.349505]
[1673308156052,0.027,17188.0,17187.0,2.349505]
[1673308157825,0.02866058,17188.0,17187.0,2.349505]
[1673308158074,0.027,17188.0,17187.0,2.349505]
[1673308159625,0.027,17188.0,17187.0,3.24388594]
[1673308159873,0.027,17188.0,17187.0,3.60592094]
[1673308160639,0.027,17188.0,17187.0,4.24388594]
[1673308161645,0.027,17188.0,17187.0,4.60592094]
[1673308161902,0.027,17188.0,17187.0,3.24388594]
[1673308163530,0.02693047,17188.0,17187.0,4.39191214]
[1673308163748,0.02693047,17188.0,17187.0,5.04062586]
[1673308165040,0.02693047,17188.0,17187.0,4.39191214]
[1673308165297,0.02693047,17188.0,17187.0,4.91821722]
[1673308167385,0.02693047,17188.0,17187.0,4.39191214]
[1673308168395,0.43458877,17192.0,17187.0,4.38791214]
[1673308168646,0.00015,17191.0,17190.0,0.1906]
[1673308168899,0.00015,17191.0,17190.0,1.152635]
[1673308169159,0.00015,17191.0,17190.0,2.897834]
[1673308169679,0.00015,17191.0,17190.0,3.197834]
[1673308169928,0.00015,17191.0,17190.0,2.897834]
[1673308170178,0.00115,17191.0,17190.0,2.952834]
[1673308170427,0.00115,17191.0,17190.0,3.252834]
[1673308170428,0.001,17191.0,17190.0,3.252834]
[1673308170690,0.001,17191.0,17190.0,2.59100816]
[1673308172993,0.001,17191.0,17190.0,3.25232754]
[1673308173252,0.001,17191.0,17190.0,3.61436254]
[1673308174031,0.001,17191.0,17190.0,3.25232754]
[1673308175112,0.001,17191.0,17190.0,3.25211838]
[1673308178672,0.001,17191.0,17190.0,3.25232754]
[1673308185093,0.001,17191.0,17190.0,1.218466]
[1673308185094,0.54003558,17191.0,17190.0,1.218466]
[1673308185338,0.54003558,17191.0,17190.0,0.636733]
[1673308185339,0.71388151,17191.0,17190.0,0.636733]
[1673308185585,1.14706899,17191.0,17190.0,0.636733]
[1673308185829,1.14706899,17191.0,17190.0,0.055]
[1673308186662,1.40781183,17191.0,17190.0,0.055]
[1673308187128,1.14706899,17191.0,17190.0,0.055]
[1673308187355,1.40781183,17191.0,17190.0,0.055]
[1673308187891,1.14706899,17191.0,17190.0,0.055]
[1673308188597,1.60781183,17191.0,17190.0,0.055]
[1673308191592,1.60781183,17191.0,17190.0,0.636733]
[1673308192910,0.73688093,17191.0,17190.0,0.63680872]
[1673308193193,0.73688093,17191.0,17190.0,0.636733]
[1673308195687,0.73688093,17191.0,17190.0,0.63680872]
[1673308195953,0.73688093,17191.0,17190.0,0.636733]
[1673308196701,0.53854151,17191.0,17190.0,0.636733]
[1673308197134,0.53688093,17191.0,17190.0,0.636733]
[1673308198145,0.79762377,17191.0,17190.0,0.636733]
[1673308198886,0.79928435,17191.0,17190.0,1.218466]
[1673308199649,0.79928435,17191.0,17190.0,0.636733]
[1673308200414,0.79762377,17191.0,17190.0,0.636733]
[1673308201405,0.79416677,17191.0,17190.0,0.63680872]
[1673308201657,0.79416677,17191.0,17190.0,0.636733]
[1673308202431,0.79416677,17191.0,17190.0,0.63680872]
[1673308202686,0.79416677,17191.0,17190.0,0.636733]
[1673308203191,0.9675679,17191.0,17190.0,0.636733]
[1673308203453,0.9675679,17191.0,17190.0,0.63680872]
[1673308203701,0.79440138,17191.0,17190.0,0.636733]
[1673308203948,0.79606196,17191.0,17190.0,0.636733]
[1673308204461,0.79440138,17191.0,17190.0,1.21854172]
[1673308204713,0.79440138,17191.0,17190.0,1.218466]
[1673308204977,1.40241596,17191.0,17190.0,0.055]
[1673308205231,1.72685858,17191.0,17190.0,0.055]
[1673308206017,0.362035,17190.0,17188.0,0.581785]
[1673308206266,0.79878978,17189.0,17188.0,0.581785]
[1673308206534,1.21631745,17190.0,17188.0,1.18536605]
[1673308206535,0.4350722,17190.0,17188.0,1.18536605]
[1673308207284,0.46373278,17190.0,17188.0,1.77109132]
[1673308207537,0.17402888,17189.0,17188.0,1.77109132]
[1673308207800,1.24497802,17190.0,17188.0,1.77109132]
[1673308208065,0.17402888,17189.0,17188.0,1.167586]
[1673308208607,0.4350722,17189.0,17188.0,1.167586]
[1673308208849,0.4350722,17189.0,17188.0,1.163586]
[1673308209121,0.4620722,17189.0,17188.0,1.167586]
[1673308211712,0.6620722,17189.0,17188.0,1.167586]
[1673308211961,0.6620722,17189.0,17188.0,0.585785]
[1673308212207,0.83610108,17189.0,17188.0,0.585785]
[1673308212453,1.26928856,17189.0,17188.0,0.585785]
[1673308212698,1.19815808,17189.0,17188.0,0.004]
[1673308212954,1.26928856,17189.0,17188.0,0.004]
[1673308213214,1.63134556,17189.0,17188.0,0.004]
[1673308213477,1.26928856,17189.0,17188.0,0.004]
[1673308213722,1.63134556,17189.0,17188.0,0.004]
[1673308215506,1.02400319,17189.0,17188.0,0.58594148]
[1673308215758,0.20090287,17189.0,17188.0,1.17188798]
[1673308216021,0.027,17189.0,17188.0,1.17188798]
[1673308216271,0.027,17189.0,17188.0,1.99136687]
[1673308216526,0.027,17189.0,17188.0,3.30464598]
[1673308216776,0.027,17189.0,17188.0,3.60464598]
[1673308218549,0.63500619,17192.0,17188.0,3.60064598]
[1673308218798,0.63500619,17192.0,17189.0,0.6]
[1673308219067,0.63500619,17192.0,17190.0,1.163466]
[1673308219557,0.63494619,17192.0,17190.0,1.163466]
[1673308220287,0.63494619,17192.0,17190.0,1.16365822]
[1673308220526,0.63760677,17192.0,17190.0,1.16365822]
[1673308221026,0.63760677,17192.0,17190.0,1.163466]
[1673308221551,0.63594619,17192.0,17190.0,1.74539122]
[1673308221820,0.63494619,17192.0,17190.0,1.74539122]
[1673308222078,0.64694619,17192.0,17190.0,1.74539122]
[1673308222331,0.64860677,17192.0,17190.0,1.74539122]
[1673308222584,0.17390287,17191.0,17190.0,1.745199]
[1673308223077,0.64694619,17192.0,17190.0,1.74539122]
[1673308223877,0.63494619,17192.0,17190.0,1.74539122]
[1673308225390,0.64694619,17192.0,17190.0,1.74539122]
[1673308227122,0.64860677,17192.0,17190.0,1.74539122]
[1673308228086,0.64694619,17192.0,17190.0,1.74539122]
[1673308229007,0.362057,17191.0,17190.0,1.74539122]
[1673308229418,0.64694619,17192.0,17190.0,1.74539122]
[1673308230707,0.63494619,17192.0,17190.0,1.74539122]
[1673308230962,0.012,17191.0,17190.0,1.74539122]
[1673308231198,0.63494619,17192.0,17190.0,1.74539122]
[1673308231452,0.64694619,17192.0,17190.0,1.74539122]
[1673308232691,0.38590287,17192.0,17190.0,1.74539122]
[1673308233682,0.38756345,17192.0,17190.0,1.74539122]
[1673308234718,0.38590287,17192.0,17190.0,1.74539122]
[1673308235190,0.38756345,17192.0,17190.0,1.74539122]
[1673308236687,0.18590287,17192.0,17190.0,1.98306911]
[1673308236935,0.362057,17191.0,17190.0,1.74539122]
[1673308237190,0.18590287,17192.0,17190.0,1.74539122]
[1673308237191,0.38590287,17192.0,17190.0,1.74539122]
[1673308237442,0.38590287,17192.0,17190.0,2.43181977]
[1673308237690,0.17390287,17192.0,17191.0,0.60834623]
[1673308237957,0.17390287,17192.0,17191.0,2.35344323]
[1673308238200,1.3062475,17193.0,17191.0,2.35344323]
[1673308238439,0.012,17192.0,17191.0,2.35344323]
[1673308238684,1.3062475,17193.0,17191.0,2.35344323]
[1673308239189,0.026,17192.0,17191.0,2.35744323]
[1673308240469,1.3062475,17193.0,17191.0,2.35344323]
[1673308240724,1.33390808,17193.0,17191.0,2.35344323]
[1673308240955,0.362057,17192.0,17191.0,2.35344323]
[1673308241205,0.026,17192.0,17191.0,2.35744323]
[1673308241445,1.30790808,17193.0,17191.0,2.35344323]
[1673308241696,0.362057,17192.0,17191.0,2.35744323]
[1673308241953,0.362057,17192.0,17191.0,2.35344323]
[1673308242268,0.026,17192.0,17191.0,2.35744323]
[1673308242469,1.30790808,17193.0,17191.0,2.35344323]
[1673308242967,0.362057,17192.0,17191.0,2.35344323]
[1673308243216,0.362057,17192.0,17191.0,2.35744323]
[1673308243461,1.33390808,17193.0,17191.0,2.35744323]
[1673308243719,0.362057,17192.0,17191.0,2.35744323]
[1673308243953,0.362057,17192.0,17191.0,2.35344323]
[1673308244442,0.026,17192.0,17191.0,2.35744323]
[1673308244695,0.388057,17192.0,17191.0,2.35744323]
[1673308246029,0.026,17192.0,17191.0,2.35744323]
[1673308249250,0.388057,17192.0,17191.0,2.35744323]
[1673308250771,0.026,17192.0,17191.0,2.35744323]
[1673308253800,0.19990287,17192.0,17191.0,2.35744323]
[1673308254065,0.026,17192.0,17191.0,2.35744323]
[1673308255428,0.46094619,17192.0,17191.0,2.35744323]
[1673308257998,0.45594619,17192.0,17191.0,2.35744323]
[1673308262030,0.19490287,17192.0,17191.0,2.35744323]
[1673308263322,0.45594619,17192.0,17191.0,2.35744323]
[1673308263576,0.19490287,17192.0,17191.0,2.35744323]
[1673308264322,0.45594619,17192.0,17191.0,2.35744323]
[1673308267151,0.45760677,17192.0,17191.0,2.35744323]
[1673308267414,0.63176166,17192.0,17191.0,2.35744323]
[1673308267724,0.99381866,17192.0,17191.0,2.35744323]
[1673308267916,0.99215808,17192.0,17191.0,2.35744323]
[1673308268890,0.63010108,17192.0,17191.0,2.35744323]
[1673308269398,0.99215808,17192.0,17191.0,2.35744323]
[1673308270426,1.42723029,17192.0,17191.0,2.35744323]
[1673308270949,1.16618697,17192.0,17191.0,2.35744323]
[1673308271203,1.42782304,17192.0,17191.0,2.35744323]
[1673308271450,1.16618697,17192.0,17191.0,2.35744323]
[1673308271716,1.06577662,17192.0,17191.0,2.35744323]
[1673308271988,1.16618697,17192.0,17191.0,2.35744323]
[1673308272239,1.16618697,17192.0,17191.0,1.749097]
[1673308273016,1.16784755,17192.0,17191.0,1.749097]
[1673308273526,1.16618697,17192.0,17191.0,1.749097]
[1673308274020,1.16784755,17192.0,17191.0,1.749097]
[1673308274828,1.16618697,17192.0,17191.0,1.749097]
[1673308275079,1.16784755,17192.0,17191.0,1.749097]
[1673308275363,1.16618697,17192.0,17191.0,1.749097]
[1673308275614,1.7092164,17192.0,17191.0,1.749097]
[1673308276105,1.7092166,17192.0,17191.0,1.749097]
[1673308276367,1.16618697,17192.0,17191.0,1.749097]
[1673308276684,1.70921709,17192.0,17191.0,1.749097]
[1673308278917,1.71087767,17192.0,17191.0,1.749097]
[1673308279164,1.79600739,17192.0,17191.0,1.167398]
[1673308279432,1.79600739,17192.0,17191.0,0.585699]
[1673308279686,2.23376944,17192.0,17191.0,0.585699]
[1673308280465,2.66989433,17192.0,17191.0,0.585699]
[1673308280917,1.79706007,17192.0,17191.0,0.585699]
[1673308281184,2.6698388,17192.0,17191.0,0.004]
[1673308281443,2.6698388,17192.0,17191.0,0.00392765]
[1673308281444,2.75443631,17192.0,17191.0,0.00392765]
[1673308282249,3.33610131,17192.0,17191.0,0.00392765]
[1673308282760,3.53576655,17192.0,17191.0,0.00392765]
[1673308283116,0.00153359,17190.0,17187.0,0.581977]
[1673308283367,0.17428756,17188.0,17187.0,0.00015]
[1673308283621,1.23096338,17188.0,17187.0,0.57517138]
[1673308283874,0.4357189,17188.0,17187.0,0.57502138]
[1673308284408,0.4357189,17188.0,17187.0,1.15685638]
[1673308284664,0.4357189,17188.0,17187.0,0.581835]
[1673308284935,0.37428756,17188.0,17187.0,0.581835]
[1673308285181,0.6357189,17188.0,17187.0,0.581835]
[1673308285427,1.7795385,17188.0,17187.0,0.581835]
[1673308285727,1.34319394,17188.0,17187.0,0.589835]
[1673308285975,1.70525094,17188.0,17187.0,0.008]
[1673308286243,1.34319394,17188.0,17187.0,0.008]
[1673308286760,1.87931436,17188.0,17187.0,0.008]
[1673308287019,1.17034282,17188.0,17187.0,0.008]
[1673308288835,0.90891148,17188.0,17187.0,0.008]
[1673308289662,1.27096848,17188.0,17187.0,0.008]
[1673308289865,0.9072509,17188.0,17187.0,0.589835]
[1673308290121,0.47406342,17188.0,17187.0,0.589835]
[1673308290620,0.475724,17188.0,17187.0,0.589835]
[1673308290876,0.30166058,17188.0,17187.0,0.589835]
[1673308291130,0.3,17188.0,17187.0,0.58990406]
[1673308291626,0.3,17188.0,17187.0,1.17173906]
[1673308292709,0.3,17188.0,17187.0,1.75357406]
[1673308293207,0.3,17188.0,17187.0,1.753505]
[1673308293525,0.3,17188.0,17187.0,1.75357406]
[1673308293675,0.3,17188.0,17187.0,1.753505]
[1673308295071,0.1,17188.0,17187.0,1.753505]
[1673308297424,0.10166058,17188.0,17187.0,1.753505]
[1673308298726,0.1,17188.0,17187.0,1.753505]
[1673308299741,0.1,17188.0,17187.0,1.75357078]
[1673308300227,0.1,17188.0,17187.0,1.753505]
[1673308300747,0.1,17188.0,17187.0,1.75357078]
[1673308305073,0.1,17188.0,17187.0,1.75350964]
[1673308305313,0.1,17188.0,17187.0,1.75344386]
[1673308306310,0.1,17188.0,17187.0,1.75358062]
[1673308308756,0.1,17188.0,17187.0,1.75344386]
[1673308309836,0.1,17188.0,17187.0,1.75364311]
[1673308310808,0.1,17188.0,17187.0,1.75344386]
[1673308311077,0.1,17188.0,17187.0,1.75364311]
[1673308311316,0.1,17188.0,17187.0,1.75344386]
[1673308312326,0.1,17188.0,17187.0,1.75364311]
[1673308313329,0.1,17188.0,17187.0,1.75344386]
[1673308315195,0.10166058,17188.0,17187.0,1.75344386]
[1673308315758,0.27406342,17188.0,17187.0,1.75344386]
[1673308316014,0.27406342,17188.0,17187.0,1.75364311]
[1673308317288,0.53549476,17188.0,17187.0,1.75364311]
[1673308317538,0.53549476,17188.0,17187.0,1.75451456]
[1673308317780,0.53549476,17188.0,17187.0,1.75344386]
[1673308318525,0.53715534,17188.0,17187.0,1.75344386]
[1673308318768,0.53549476,17188.0,17187.0,1.75451456]
[1673308320032,0.53549476,17188.0,17187.0,1.75344386]
[1673308320787,0.71000646,17188.0,17187.0,1.75344386]
[1673308321532,0.88429402,17188.0,17187.0,1.75344386]
[1673308321805,1.42463573,17188.0,17187.0,1.17160886]
[1673308322071,1.85782321,17188.0,17187.0,1.17160886]
[1673308322356,1.85948379,17188.0,17187.0,1.17160886]
[1673308322888,1.42463573,17188.0,17187.0,1.17160886]
[1673308323153,1.85782321,17188.0,17187.0,1.17160886]
[1673308323419,1.85978847,17188.0,17187.0,1.17160886]
[1673308323925,1.51090867,17188.0,17187.0,1.17160886]
[1673308325145,1.07772119,17188.0,17187.0,1.17160886]
[1673308325397,1.42657337,17188.0,17187.0,1.17160886]
[1673308325646,1.85976085,17188.0,17187.0,1.17160886]
[1673308326937,1.51090867,17188.0,17187.0,1.17160886]
[1673308327214,1.07772119,17188.0,17187.0,1.17160886]
[1673308327450,1.51090867,17188.0,17187.0,1.17160886]
[1673308328533,1.4249212,17188.0,17187.0,1.17173746]
[1673308329048,0.88457949,17188.0,17187.0,1.17173746]
[1673308329332,1.14622858,17188.0,17187.0,1.17173746]
[1673308329600,0.71050968,17188.0,17187.0,1.17173746]
[1673308330600,0.71050968,17188.0,17187.0,1.17160886]
[1673308330840,0.71050968,17188.0,17187.0,1.17173746]
[1673308331091,0.71050968,17188.0,17187.0,1.17160886]
[1673308331900,0.71050968,17188.0,17187.0,1.17173746]
[1673308332596,0.71050968,17188.0,17187.0,1.17160886]
[1673308333750,0.71217026,17188.0,17187.0,1.17160886]
[1673308334058,0.71050968,17188.0,17187.0,1.17160886]
[1673308336144,0.71217026,17188.0,17187.0,1.17160886]
[1673308336400,0.88624007,17188.0,17187.0,1.17160886]
[1673308336643,1.42305524,17188.0,17187.0,1.17160886]
[1673308338665,1.42139466,17188.0,17187.0,1.17160886]
[1673308338974,0.88457949,17188.0,17187.0,1.17173746]
[1673308339238,0.71050516,17188.0,17187.0,1.17173746]
[1673308339566,0.53607139,17188.0,17187.0,1.17173746]
[1673308339745,0.53607139,17188.0,17187.0,1.75357246]
[1673308340262,0.53607139,17188.0,17187.0,2.34845791]
[1673308340520,0.27442682,17188.0,17187.0,2.34845791]
[1673308341568,0.27442682,17188.0,17187.0,1.76649431]
[1673308343358,0.27442682,17188.0,17187.0,2.34832931]
[1673308343627,0.27442682,17188.0,17187.0,1.76649431]
[1673308344391,0.27442682,17188.0,17187.0,2.34832931]
[1673308345376,0.27442682,17188.0,17187.0,2.34845791]
[1673308348981,0.27433421,17188.0,17187.0,2.34845791]
[1673308349230,0.09990739,17188.0,17187.0,2.34845791]
[1673308358026,0.09990739,17188.0,17187.0,3.94845791]
[1673308360025,0.09990739,17188.0,17187.0,4.31051491]
[1673308360794,0.09990739,17188.0,17187.0,5.43909235]
[1673308361040,0.09990739,17188.0,17187.0,5.54987726]
[1673308361300,0.09990739,17188.0,17187.0,6.11646335]
[1673308361537,0.09990739,17188.0,17187.0,6.14195983]
[1673308361784,0.09990739,17188.0,17187.0,5.54987726]
[1673308362041,0.00015,17191.0,17188.0,0.2]
[1673308362290,0.00015,17191.0,17189.0,3.707358]
[1673308362555,0.00015,17191.0,17190.0,0.562057]
[1673308362800,0.00015,17191.0,17190.0,2.07446907]
[1673308363046,0.17442682,17192.0,17190.0,2.07446907]
[1673308363293,0.17442682,17192.0,17190.0,1.87446907]
[1673308363529,0.007,17191.0,17190.0,1.87446907]
[1673308364284,0.63607139,17192.0,17190.0,2.45620207]
[1673308364542,0.003,17191.0,17190.0,2.48420207]
[1673308365345,0.17442682,17192.0,17190.0,2.45620207]
[1673308365588,0.17742682,17192.0,17190.0,2.45620207]
[1673308365831,0.17742682,17192.0,17191.0,0.00012857]
[1673308366133,0.37742682,17192.0,17191.0,1.74522557]
[1673308366357,0.3760874,17192.0,17191.0,1.745097]
[1673308366611,0.003,17192.0,17191.0,1.745097]
[1673308367345,0.86916897,17193.0,17191.0,1.745097]
[1673308367588,0.22042682,17192.0,17191.0,1.749097]
[1673308368616,0.17442682,17192.0,17191.0,1.74522557]
[1673308368837,1.41802956,17193.0,17191.0,1.74522557]
[1673308369081,0.98493198,17193.0,17191.0,1.74522557]
[1673308369328,0.53648382,17192.0,17191.0,1.74522557]
[1673308369589,0.17442682,17192.0,17191.0,1.74522557]
[1673308369845,0.17442682,17192.0,17191.0,1.74922557]
[1673308369846,0.046,17192.0,17191.0,1.74922557]
[1673308370086,1.06916895,17193.0,17191.0,2.31502569]
[1673308370329,0.68207139,17193.0,17191.0,2.31493044]
[1673308371086,0.63607139,17193.0,17191.0,2.31093044]
[1673308371346,0.046,17192.0,17191.0,2.31493044]
[1673308371581,0.046,17192.0,17191.0,2.31093044]
[1673308371822,0.046,17192.0,17191.0,2.31493044]
[1673308372562,0.63607139,17193.0,17191.0,2.31093044]
[1673308372820,0.046,17192.0,17191.0,2.31493044]
[1673308373561,0.63607139,17193.0,17191.0,2.31093044]
[1673308373815,0.68207139,17193.0,17191.0,2.31493044]
[1673308374308,0.42042682,17193.0,17191.0,2.31493044]
[1673308374559,0.37442682,17193.0,17191.0,2.31093044]
[1673308374812,0.046,17192.0,17191.0,2.31493044]
[1673308375068,0.046,17192.0,17191.0,2.31093044]
[1673308375320,0.046,17192.0,17191.0,2.31493044]
[1673308375567,0.37442682,17193.0,17191.0,2.31093044]
[1673308375817,0.046,17192.0,17191.0,2.31493044]
[1673308378839,0.04766058,17192.0,17191.0,2.31480187]
[1673308379096,0.046,17192.0,17191.0,2.31480187]
[1673308379846,0.04766058,17192.0,17191.0,2.30980187]
[1673308380091,0.046,17192.0,17191.0,2.30980187]
[1673308382588,0.046,17192.0,17191.0,2.30993044]
[1673308384271,0.04766058,17192.0,17191.0,2.30980187]
[1673308384513,0.046,17192.0,17191.0,2.30993044]
[1673308388421,0.046,17192.0,17191.0,2.30493044]
[1673308395610,0.046,17192.0,17191.0,3.03811792]
[1673308395865,0.046,17192.0,17191.0,3.26698744]
[1673308396116,0.046,17192.0,17191.0,2.90493044]
[1673308398642,0.046,17192.0,17191.0,3.07899968]
[1673308398897,0.046,17192.0,17191.0,3.37899968]
[1673308399143,0.046,17192.0,17191.0,3.20493044]
[1673308399400,0.046,17192.0,17191.0,3.07899968]
[1673308399915,0.046,17192.0,17191.0,3.37899968]
[1673308400677,0.046,17192.0,17191.0,3.07899968]
[1673308400929,0.046,17192.0,17191.0,4.37899968]
[1673308401188,0.046,17192.0,17191.0,5.17424416]
[1673308402475,0.046,17192.0,17191.0,4.74105668]
[1673308402713,0.046,17192.0,17191.0,5.29056831]
[1673308403007,0.046,17192.0,17191.0,5.43534802]
[1673308403505,0.046,17192.0,17191.0,5.17424416]
[1673308404066,0.046,17192.0,17191.0,4.44105668]
[1673308404330,0.046,17192.0,17191.0,4.74105668]
[1673308404589,0.046,17192.0,17191.0,4.44105668]
[1673308404845,0.046,17192.0,17191.0,4.87424416]
[1673308405613,0.046,17192.0,17191.0,4.44105668]
[1673308405855,0.046,17192.0,17191.0,4.07899968]
[1673308406615,0.046,17192.0,17191.0,4.74105668]
[1673308406892,0.046,17192.0,17191.0,5.15785056]
[1673308407131,0.046,17192.0,17191.0,5.85924935]
[1673308407670,0.046,17192.0,17191.0,6.05004935]
[1673308407880,0.046,17192.0,17191.0,5.76174669]
[1673308408388,0.04593944,17192.0,17191.0,5.76174669]
[1673308408890,0.04593944,17192.0,17191.0,5.50064283]
[1673308409412,0.04593944,17192.0,17191.0,5.76174669]
[1673308409652,0.04593944,17192.0,17191.0,5.50064283]
[1673308415457,0.04593944,17192.0,17191.0,5.06745535]
[1673308415919,0.45813065,17195.0,17192.0,0.77141937]
[1673308416205,0.17419632,17195.0,17193.0,1.744896]
[1673308416447,0.17419632,17195.0,17193.0,1.98263403]
[1673308416658,0.17419632,17195.0,17193.0,1.74495614]
[1673308417162,0.22519632,17195.0,17193.0,1.74495614]
[1673308417377,0.17419632,17195.0,17193.0,1.74495614]
[1673308417623,0.22419632,17195.0,17193.0,1.75595614]
[1673308418859,0.17419632,17195.0,17193.0,1.74495614]
[1673308419131,0.17419632,17195.0,17194.0,0.66973772]
[1673308419376,0.17419632,17195.0,17194.0,1.83293372]
[1673308419897,0.17719632,17195.0,17194.0,1.83293372]
[1673308420140,0.17419632,17195.0,17194.0,1.83293372]
[1673308420410,0.19319632,17195.0,17194.0,1.83293372]
[1673308421907,0.19319632,17195.0,17194.0,2.41453172]
[1673308424658,0.55525332,17195.0,17194.0,2.41453172]
[1673308430939,0.19319632,17195.0,17194.0,2.41453172]
[1673308431447,0.45451056,17195.0,17194.0,2.41453172]
[1673308431707,0.81656756,17195.0,17194.0,2.41453172]
[1673308431964,0.55525332,17195.0,17194.0,2.41453172]
[1673308432480,0.81656756,17195.0,17194.0,2.41453172]
[1673308433803,0.019,17195.0,17194.0,2.41453172]
[1673308434579,0.019,17195.0,17194.0,2.84669414]
[1673308434837,0.18806369,17196.0,17194.0,2.84669414]
[1673308435085,0.004,17195.0,17194.0,3.14476338]
[1673308435309,0.004,17195.0,17194.0,3.50682038]
[1673308436315,0.004,17195.0,17194.0,3.64404936]
[1673308436559,0.01786737,17196.0,17194.0,4.06804936]
[1673308436809,0.01786737,17196.0,17195.0,0.562057]
[1673308436810,0.01386737,17196.0,17195.0,0.562057]
[1673308437060,0.01386737,17196.0,17195.0,1.744692]
[1673308437793,0.01786737,17196.0,17195.0,1.744692]
[1673308438526,0.02086737,17196.0,17195.0,1.795692]
[1673308442991,0.02086737,17196.0,17195.0,2.43129829]
[1673308443226,0.02086737,17196.0,17195.0,2.86346071]
[1673308443475,0.02080155,17196.0,17195.0,2.86346071]
[1673308443964,0.02080155,17196.0,17195.0,3.16346071]
[1673308449167,0.02080155,17196.0,17195.0,4.16346071]
[1673308449452,0.02080155,17196.0,17195.0,4.69958695]
[1673308449696,0.02080155,17196.0,17195.0,4.5987095]
[1673308449946,0.02080155,17196.0,17195.0,4.89531844]
[1673308450719,0.02080155,17196.0,17195.0,5.22396781]
[1673308450972,0.02080155,17196.0,17195.0,4.63421458]
[1673308451461,0.02080155,17196.0,17195.0,4.89531844]
[1673308451712,0.02080155,17196.0,17195.0,5.22385951]
[1673308451959,8.25890146,17200.0,17196.0,0.72625013]
[1673308452198,8.25890146,17200.0,17197.0,2.41862115]
[1673308453226,8.25890146,17200.0,17198.0,6.38e-05]
[1673308453476,0.2,17199.0,17198.0,6.38e-05]
[1673308453730,0.2,17199.0,17198.0,1.7444498]
[1673308455000,0.013,17199.0,17198.0,1.7444498]
[1673308458157,0.013,17199.0,17198.0,2.3514346]
[1673308459395,0.013,17199.0,17198.0,2.6514346]
[1673308459932,0.013,17199.0,17198.0,2.3514346]
[1673308460181,0.013,17199.0,17198.0,2.6514346]
[1673308460432,0.013,17199.0,17198.0,3.08790786]
[1673308460930,0.013,17199.0,17198.0,3.44996486]
[1673308461999,0.013,17199.0,17198.0,3.08790786]
[1673308463275,0.013,17199.0,17198.0,3.44996486]
[1673308464778,0.013,17199.0,17198.0,2.6514346]
[1673308466004,0.013,17199.0,17198.0,3.57381659]
[1673308467260,0.013,17199.0,17198.0,2.28518633]
[1673308467517,0.013,17199.0,17198.0,1.74450802]
[1673308467769,0.013,17199.0,17198.0,1.162924]
[1673308468518,0.013,17199.0,17198.0,1.16304602]
[1673308469516,0.013,17199.0,17198.0,1.74450802]
[1673308473065,0.01466058,17199.0,17198.0,1.744386]
[1673308473311,0.013,17199.0,17198.0,1.744386]
[1673308474036,0.013,17199.0,17198.0,1.74445563]
[1673308474535,0.013,17199.0,17198.0,1.744386]
[1673308475019,0.013,17199.0,17198.0,1.7443183]
[1673308475270,0.213,17199.0,17198.0,1.74438793]
[1673308475767,0.213,17199.0,17198.0,1.7443183]
[1673308476489,0.213,17199.0,17198.0,1.74438793]
[1673308476882,0.213,17199.0,17198.0,1.7443183]
[1673308477114,0.38719632,17199.0,17198.0,1.7443183]
[1673308477368,0.013,17199.0,17198.0,1.7443183]
[1673308480591,0.013,17199.0,17198.0,1.74439289]
[1673308489532,0.013,17199.0,17198.0,1.7443183]
[1673308492024,0.18719632,17199.0,17198.0,1.7443183]
[1673308493298,0.18719632,17199.0,17198.0,1.74439289]
[1673308495534,0.18719632,17199.0,17198.0,1.7443183]
[1673308495818,0.18719632,17199.0,17198.0,1.74439289]
[1673308499640,0.18719632,17199.0,17198.0,1.7443183]
[1673308501182,0.013,17199.0,17198.0,1.7443183]
[1673308501427,0.18719632,17199.0,17198.0,1.7443183]
[1673308501678,0.38719632,17199.0,17198.0,1.7408683]
[1673308503374,0.38719632,17199.0,17198.0,1.74094289]
[1673308503593,0.38719632,17199.0,17198.0,1.7408683]
[1673308504356,0.013,17199.0,17198.0,1.74094289]
[1673308504817,0.18719632,17199.0,17198.0,1.74094289]
[1673308506114,0.16219632,17199.0,17198.0,1.74094289]
[1673308507232,0.42351056,17199.0,17198.0,1.74094289]
[1673308508233,0.16219632,17199.0,17198.0,1.74094289]
[1673308509252,0.42351056,17199.0,17198.0,1.7408683]
[1673308510010,0.26131424,17199.0,17198.0,1.7408683]
[1673308510268,0.60971031,17199.0,17198.0,1.1594063]
[1673308510511,0.97342789,17199.0,17197.0,1.162968]
[1673308510776,0.9720131,17198.0,17197.0,0.581481]
[1673308511025,0.9720131,17198.0,17197.0,0.581482]
[1673308511276,1.34617197,17198.0,17197.0,0.581482]
[1673308511530,1.50843698,17198.0,17197.0,0.581482]
[1673308511786,1.87085828,17198.0,17197.0,0.581482]
[1673308512037,1.87085875,17198.0,17197.0,0.581482]
[1673308512282,1.87185875,17198.0,17197.0,0.642482]
[1673308512547,1.24593846,17198.0,17197.0,0.581482]
[1673308512800,0.99247974,17198.0,17197.0,0.581482]
[1673308513051,1.35453674,17198.0,17197.0,0.581482]
[1673308514023,1.8782224,17198.0,17197.0,0.581482]
[1673308514269,1.5161654,17198.0,17197.0,0.581482]
[1673308514514,1.35453674,17198.0,17197.0,0.581482]
[1673308514750,1.61590165,17198.0,17197.0,0.581482]
[1673308514999,1.35453674,17198.0,17197.0,0.581482]
[1673308515492,0.99247974,17198.0,17196.0,0.58151]
[1673308515785,1.16138656,17197.0,17195.0,1.163106]
[1673308516036,0.62342572,17196.0,17195.0,0.581558]
[1673308516289,0.6356182,17196.0,17195.0,0.581558]
[1673308516547,0.37424948,17196.0,17195.0,0.581558]
[1673308517081,0.73630648,17196.0,17195.0,0.581558]
[1673308517570,0.9976752,17196.0,17195.0,0.581558]
[1673308518114,1.17218656,17196.0,17194.0,0.581581]
[1673308518328,1.00292956,17196.0,17195.0,0.134]
[1673308518577,1.00292956,17196.0,17194.0,1.16318]
[1673308518578,0.1891,17195.0,17194.0,1.16318]
[1673308518823,0.67053268,17196.0,17195.0,0.004]
[1673308519107,1.22078968,17196.0,17195.0,0.004]
[1673308519359,1.25545026,17196.0,17195.0,0.004]